[Event "DVM U12 2024"]
[Site "Heidelberg"]
[Date "2024.12.29"]
[Round "6"]
[White "Gersemann, Karl"]
[Black "Shen, Tingrui"]
[Result "0-1"]
[ECO "B90"]
[WhiteElo "2012"]
[BlackElo "2164"]
[Annotator "RC"]
[PlyCount "52"]
[EventDate "2024.12.23"]
[EventType "team-tourn"]
[EventRounds "7"]
[EventCountry "GER"]
[SourceTitle "playchess.com"]
[Source "ChessBase"]
[SourceQuality "1"]
[TimeControl "40/5400+30:1800+30"]

1. e4 {[%emt 0:00:11]} c5 {[%emt 0:00:24]} 2. Nf3 {[%emt 0:00:05]} d6 {[%emt 0:00:19]} 3. d4 {[%emt 0:00:08]} cxd4 {[%emt 0:00:37]} 4. Nxd4 {[%emt 0:00:09]} Nf6 {[%emt 0:00:37]} 5. Nc3 {[%emt 0:00:09]} a6 {[%emt 0:00:24]} 6. f3 {[%emt 0:00:40]} e5 {[%emt 0:00:13]} 7. Nb3 {[%emt 0:00:09]} Be6 {[%emt 0:00:16]} 8. Be3 {[%emt 0:00:08]} h5 {[%emt 0:00:32]} 9. Qd2 {[%emt 0:00:38]} Be7 {[%emt 0:00:22]} 10. a4 {[%emt 0:02:40]} Nc6 {[%emt 0:02:49]} 11. Nd5 {[%emt 0:01:12]} Rc8 {[%emt 0:03:07]} 12. c4 {[%emt 0:06:00]} h4 {[%emt 0:01:22]} 13. a5 {[%emt 0:02:14]} Nh5 {[%emt 0:03:28]} 14. Nc1 {[%emt 0:06:13]} Bxd5 {[%emt 0:07:45]} 15. cxd5 {[%emt 0:00:32]} Nd4 {[%emt 0:01:36]} 16. Bxd4 {[%emt 0:01:32]} exd4 {[%emt 0:00:23]} 17. Qxd4 {[%emt 0:06:01]} O-O {[%emt 0:03:15]} 18. Nd3 {[%emt 0:04:06]} Rc2 {[%emt 0:02:13]} 19. Qa4 {[%emt 0:01:51]} Qc7 {[%emt 0:00:57]} 20. Be2 {[%emt 0:03:41]} Bg5 {[%emt 0:09:31]} 21. Kf2 {[%emt 0:16:29]} Bf4 {[%emt 0:08:22]} 22. Qb3 {[%emt 0:14:08]} Rc8 {[%emt 0:01:05]} 23. Ra4 {[%emt 0:06:33]} Qe7 {[%emt 0:05:46]} 24. Qb6 {[%emt 0:03:54]} Qg5 {[%emt 0:01:09]} 25. Ne1 {[%emt 0:03:37]} Rc1 {[%emt 0:02:30]} 26. b3 {[%emt 0:00:56]} R8c3 {[%emt 0:03:28]} 0-1

[Event "DVM U12 2024"]
[Site "Heidelberg"]
[Date "2024.12.29"]
[Round "6"]
[White "Fadeev, Justin Michael"]
[Black "Kraus, Linus"]
[Result "1-0"]
[ECO "B15"]
[WhiteElo "1894"]
[BlackElo "1803"]
[Annotator "NA RC"]
[PlyCount "147"]
[EventDate "2024.12.23"]
[EventType "team-tourn"]
[EventRounds "7"]
[EventCountry "GER"]
[SourceTitle "playchess.com"]
[Source "ChessBase"]
[SourceQuality "1"]
[TimeControl "40/5400+30:1800+30"]

1. e4 {[%emt 0:00:00]} g6 {[%emt 0:00:13]} 2. d4 {[%emt 0:00:06]} Bg7 {[%emt 0:00:08]} 3. Nc3 {[%emt 0:00:05]} c6 {[%emt 0:00:05]} 4. f4 {[%emt 0:00:08]} d5 {[%emt 0:00:12]} 5. e5 {[%emt 0:00:07]} Nh6 {[%emt 0:00:53]} 6. Nf3 {[%emt 0:01:51]} f6 {[%emt 0:00:56]} 7. h3 {[%emt 0:03:33]} O-O {[%emt 0:02:40]} 8. Be3 {[%emt 0:02:24]} Nd7 {[%emt 0:06:52]} 9. Bd3 {[%emt 0:04:55]} fxe5 {[%emt 0:00:17]} 10. fxe5 {[%emt 0:04:11]} Nb6 {[%emt 0:02:27]} 11. O-O {[%emt 0:03:56]} Bf5 {[%emt 0:00:15]} 12. b3 {[%emt 0:04:02]} Bxd3 {[%emt 0:02:03]} 13. Qxd3 {[%emt 0:00:18]} e6 {[%emt 0:00:28]} 14. g4 {[%emt 0:02:18]} Nd7 {[%emt 0:07:47]} 15. Ne2 {[%emt 0:06:30]} Nf7 {[%emt 0:01:27]} 16. g5 {[%emt 0:07:14]} c5 {[%emt 0:00:41]} 17. c3 {[%emt 0:00:20]} Qc7 {[%emt 0:00:25]} 18. Nh2 {[%emt 0:01:52]} Rac8 {[%emt 0:09:31]} 19. Rac1 {[%emt 0:09:25]} c4 {[%emt 0:02:20]} 20. Qd2 {[%emt 0:01:14]} a5 {[%emt 0:01:46]} 21. b4 {[%emt 0:05:42]} axb4 {[%emt 0:00:43]} 22. cxb4 {[%emt 0:00:01]} Ra8 {[%emt 0:01:01]} 23. Nc3 {[%emt 0:02:44]} Nb6 {[%emt 0:02:37]} 24. Ng4 {[%emt 0:01:37]} Na4 {[%emt 0:01:47]} 25. Nf6+ {[%emt 0:02:02]} Bxf6 {[%emt 0:01:55]} 26. Rxf6 {[%emt 0:00:43]} Nxc3 {[%emt 0:00:14]} 27. Rxc3 {[%emt 0:00:15]} Nd8 {[%emt 0:01:31]} 28. Bf2 {[%emt 0:01:45]} Qd7 {[%emt 0:03:27]} 29. h4 {[%emt 0:03:04]} Nc6 {[%emt 0:00:32]} 30. Rg3 {[%emt 0:02:31]} Ne7 {[%emt 0:02:11]} 31. h5 {[%emt 0:01:37]} Kg7 {[%emt 0:01:34]} 32. Rh3 {[%emt 0:07:11]} Nf5 {[%emt 0:01:10]} 33. Qe2 {[%emt 0:00:48]} Qe8 {[%emt 0:09:35]} 34. a3 {[%emt 0:08:59]} b5 {[%emt 0:01:45]} 35. Qg4 {[%emt 0:01:16]} Ra6 {[%emt 0:05:37]} 36. Qg2 {[%emt 0:01:30]} Rf7 {[%emt 0:08:41]} 37. hxg6 {[%emt 0:02:00]} hxg6 {[%emt 0:00:11]} 38. Qh2 {[%emt 0:00:17]} Qg8 {[%emt 0:01:48]} 39. Rh7+ {[%emt 0:02:56]} Qxh7 {[%emt 0:00:40]} 40. Rxf7+ {[%emt 0:00:05]} Kxf7 {[%emt 0:00:13]} 41. Qxh7+ {[%emt 0:30:02]} Ng7 {[%emt 0:30:16]} 42. Qh8 {[%emt 0:02:07]} Ne8 {[%emt 0:00:41]} 43. Qh3 {[%emt 0:03:40]} Ng7 {[%emt 0:00:31]} 44. Kf1 {[%emt 0:00:18]} Nh5 {[%emt 0:01:29]} 45. Qf3+ {[%emt 0:00:43]} Ke7 {[%emt 0:00:10]} 46. Ke1 {[%emt 0:03:00]} Ra4 {[%emt 0:00:11]} 47. Kd2 {[%emt 0:00:19]} Ra6 {[%emt 0:00:10]} 48. Kc2 {[%emt 0:00:21]} Ra4 {[%emt 0:00:09]} 49. Kb2 {[%emt 0:00:06]} Ra6 {[%emt 0:00:09]} 50. Bg1 {[%emt 0:00:33]} Ra4 {[%emt 0:00:29]} 51. Bh2 {[%emt 0:00:09]} Ra6 {[%emt 0:00:10]} 52. Qf2 {[%emt 0:00:11]} Ra4 {[%emt 0:00:20]} 53. Qc2 {[%emt 0:00:16]} Kf7 {[%emt 0:00:12]} 54. Qxa4 {[%emt 0:00:00]} bxa4 {[%emt 0:00:00]} 55. b5 {[%emt 0:00:00]} Ke7 {[%emt 0:00:00]} 56. Kc3 {[%emt 0:00:00]} Kd7 {[%emt 0:00:00]} 57. Kb4 {[%emt 0:00:00]} Ng7 {[%emt 0:00:00]} 58. Bg3 {[%emt 0:00:00]} Nf5 {[%emt 0:00:00]} 59. Bf2 {[%emt 0:00:00]} Kc7 {[%emt 0:00:00]} 60. Kxa4 {[%emt 0:00:00]} Ne7 {[%emt 0:00:00]} 61. Kb4 {[%emt 0:00:00]} Nc8 {[%emt 0:00:00]} 62. a4 {[%emt 0:00:00]} Nb6 {[%emt 0:00:00]} 63. a5 {[%emt 0:00:00]} Nd7 {[%emt 0:00:00]} 64. Be1 {[%emt 0:00:00]} Kb7 {[%emt 0:00:00]} 65. Ka4 {[%emt 0:00:00]} Kc7 {[%emt 0:00:00]} 66. Bb4 {[%emt 0:00:00]} Nb8 {[%emt 0:00:00]} 67. Bd6+ {[%emt 0:00:00]} Kc8 {[%emt 0:00:00]} 68. a6 {[%emt 0:00:00]} Nd7 {[%emt 0:00:00]} 69. Bb4 {[%emt 0:00:00]} Kb8 {[%emt 0:00:00]} 70. Ka5 {[%emt 0:00:00]} Kc7 {[%emt 0:00:00]} 71. Bd2 {[%emt 0:00:00]} Nb6 {[%emt 0:00:00]} 72. Bc3 {[%emt 0:00:00]} Na8 {[%emt 0:00:00]} 73. Bb4 {[%emt 0:00:00]} Nb6 {[%emt 0:00:00]} 74. Bd6+ {[%emt 0:00:00]} 1-0

[Event "DVM U12 2024"]
[Site "Heidelberg"]
[Date "2024.12.29"]
[Round "6"]
[White "Lange, Fynn Jeremy"]
[Black "Berger, Friedrich Richard"]
[Result "1/2-1/2"]
[ECO "A25"]
[WhiteElo "1878"]
[BlackElo "1658"]
[Annotator "NA RC"]
[PlyCount "61"]
[EventDate "2024.12.23"]
[EventType "team-tourn"]
[EventRounds "7"]
[EventCountry "GER"]
[SourceTitle "playchess.com"]
[Source "ChessBase"]
[SourceQuality "1"]
[TimeControl "40/5400+30:1800+30"]

1. c4 {[%emt 0:00:12]} e5 {[%emt 0:00:15]} 2. g3 {[%emt 0:00:09]} Nc6 {[%emt 0:00:29]} 3. Bg2 {[%emt 0:00:18]} d6 {[%emt 0:00:32]} 4. Nc3 {[%emt 0:00:21]} f5 {[%emt 0:00:36]} 5. e3 {[%emt 0:00:48]} Nf6 {[%emt 0:01:24]} 6. Nge2 {[%emt 0:00:26]} g6 {[%emt 0:03:03]} 7. d3 {[%emt 0:02:49]} Bg7 {[%emt 0:00:50]} 8. Rb1 {[%emt 0:00:28]} a5 {[%emt 0:02:51]} 9. a3 {[%emt 0:00:07]} O-O {[%emt 0:01:59]} 10. O-O {[%emt 0:01:44]} Be6 {[%emt 0:01:52]} 11. Nd5 {[%emt 0:03:38]} Bxd5 {[%emt 0:04:48]} 12. cxd5 {[%emt 0:00:36]} Ne7 {[%emt 0:01:26]} 13. Nc3 {[%emt 0:02:00]} h6 {[%emt 0:05:10]} 14. f4 {[%emt 0:03:15]} Qd7 {[%emt 0:05:36]} 15. Bd2 {[%emt 0:05:54]} exf4 {[%emt 0:05:59]} 16. gxf4 {[%emt 0:02:02]} Nc8 {[%emt 0:08:40]} 17. Bf3 {[%emt 0:03:14]} Nb6 {[%emt 0:03:55]} 18. Qc2 {[%emt 0:06:22]} Rfe8 {[%emt 0:04:26]} 19. Rbe1 {[%emt 0:03:08]} Qf7 {[%emt 0:02:14]} 20. e4 {[%emt 0:00:52]} fxe4 {[%emt 0:02:21]} 21. dxe4 {[%emt 0:00:21]} Kh8 {[%emt 0:03:47]} 22. Nb5 {[%emt 0:02:35]} Re7 {[%emt 0:00:42]} 23. Be3 {[%emt 0:01:50]} Rd8 {[%emt 0:05:34]} 24. Nc3 {[%emt 0:04:48]} Nbd7 {[%emt 0:02:43]} 25. Qd2 {[%emt 0:03:06]} Ng8 {[%emt 0:02:56]} 26. Nb5 {[%emt 0:03:51]} Ndf6 {[%emt 0:02:53]} 27. Nc3 {[%emt 0:02:31]} Rde8 {[%emt 0:01:09]} 28. Bf2 {[%emt 0:07:18]} Nd7 {[%emt 0:06:07]} 29. Re2 {[%emt 0:04:54]} g5 {[%emt 0:03:44]} 30. Bg3 {[%emt 0:04:05]} Qg6 {[%emt 0:02:29]} 31. Rg2 {[%emt 0:08:10]} 1/2-1/2

[Event "DVM U12 2024"]
[Site "Heidelberg"]
[Date "2024.12.29"]
[Round "6"]
[White "Vartanian, Roman"]
[Black "Sriram, Aumkar"]
[Result "1-0"]
[ECO "A90"]
[WhiteElo "1853"]
[BlackElo "1610"]
[Annotator "NA RC"]
[PlyCount "143"]
[EventDate "2024.12.23"]
[EventType "team-tourn"]
[EventRounds "7"]
[EventCountry "GER"]
[SourceTitle "playchess.com"]
[Source "ChessBase"]
[SourceQuality "1"]
[TimeControl "40/5400+30:1800+30"]

1. Nf3 {[%emt 0:00:04]} e6 {[%emt 0:00:10]} 2. d4 {[%emt 0:00:03]} f5 {[%emt 0:00:11]} 3. c4 {[%emt 0:00:26]} Nf6 {[%emt 0:00:09]} 4. g3 {[%emt 0:00:21]} d5 {[%emt 0:00:21]} 5. Bg2 {[%emt 0:00:17]} c6 {[%emt 0:00:11]} 6. Nc3 {[%emt 0:00:09]} Bd6 {[%emt 0:00:09]} 7. O-O {[%emt 0:00:13]} O-O {[%emt 0:00:15]} 8. Qb3 {[%emt 0:00:11]} Nbd7 {[%emt 0:00:38]} 9. Bg5 {[%emt 0:00:16]} h6 {[%emt 0:01:11]} 10. Bxf6 {[%emt 0:00:03]} Nxf6 {[%emt 0:00:32]} 11. Rfe1 {[%emt 0:00:08]} Ne4 {[%emt 0:01:45]} 12. a4 {[%emt 0:00:40]} Bd7 {[%emt 0:01:36]} 13. c5 {[%emt 0:00:44]} Bc7 {[%emt 0:00:45]} 14. e3 {[%emt 0:03:48]} b6 {[%emt 0:02:42]} 15. cxb6 {[%emt 0:00:13]} axb6 {[%emt 0:00:18]} 16. Rec1 {[%emt 0:03:04]} c5 {[%emt 0:02:15]} 17. Ne1 {[%emt 0:04:15]} Qe7 {[%emt 0:01:07]} 18. f3 {[%emt 0:01:19]} c4 {[%emt 0:02:10]} 19. Qc2 {[%emt 0:04:38]} Nf6 {[%emt 0:02:39]} 20. b3 {[%emt 0:09:48]} cxb3 {[%emt 0:14:31]} 21. Qxb3 {[%emt 0:00:34]} Kh8 {[%emt 0:02:32]} 22. Nd3 {[%emt 0:01:43]} Rfc8 {[%emt 0:01:50]} 23. Bf1 {[%emt 0:13:40]} Qf7 {[%emt 0:04:00]} 24. Kg2 {[%emt 0:00:48]} Qg6 {[%emt 0:01:46]} 25. Be2 {[%emt 0:05:44]} h5 {[%emt 0:01:22]} 26. Kf2 {[%emt 0:07:15]} Qe8 {[%emt 0:05:11]} 27. Ne5 {[%emt 0:00:00]} Bc6 {[%emt 0:03:38]} 28. Nxc6 {[%emt 0:01:13]} Qxc6 {[%emt 0:00:30]} 29. Nb5 {[%emt 0:04:43]} Qd7 {[%emt 0:04:44]} 30. Nxc7 {[%emt 0:01:15]} Rxc7 {[%emt 0:00:17]} 31. Qxb6 {[%emt 0:00:15]} Rxc1 {[%emt 0:08:19]} 32. Rxc1 {[%emt 0:01:18]} Qxa4 {[%emt 0:00:39]} 33. Qxe6 {[%emt 0:01:10]} Qd7 {[%emt 0:00:13]} 34. Qxd7 {[%emt 0:02:56]} Nxd7 {[%emt 0:00:05]} 35. Bd3 {[%emt 0:03:39]} Ra2+ {[%emt 0:00:46]} 36. Rc2 {[%emt 0:00:04]} Rxc2+ {[%emt 0:00:25]} 37. Bxc2 {[%emt 0:00:09]} g6 {[%emt 0:00:05]} 38. g4 {[%emt 0:01:36]} hxg4 {[%emt 0:01:02]} 39. fxg4 {[%emt 0:00:13]} fxg4 {[%emt 0:00:01]} 40. Bxg6 {[%emt 0:00:46]} Nf6 {[%emt 0:00:04]} 41. Kg3 {[%emt 0:30:32]} Kg7 {[%emt 0:30:53]} 42. Bf5 {[%emt 0:00:23]} Kh6 {[%emt 0:00:21]} 43. Bxg4 {[%emt 0:00:09]} Kg5 {[%emt 0:01:32]} 44. h4+ {[%emt 0:00:08]} Kg6 {[%emt 0:00:42]} 45. Kf4 {[%emt 0:00:34]} Kh6 {[%emt 0:00:13]} 46. Kf5 {[%emt 0:00:29]} Kg7 {[%emt 0:00:11]} 47. Bf3 {[%emt 0:00:08]} Kf7 {[%emt 0:00:17]} 48. Ke5 {[%emt 0:00:09]} Ke7 {[%emt 0:00:11]} 49. Bxd5 {[%emt 0:00:44]} Ng4+ {[%emt 0:00:37]} 50. Kf4 {[%emt 0:00:00]} Nf6 {[%emt 0:00:14]} 51. e4 {[%emt 0:00:00]} Kd7 {[%emt 0:00:08]} 52. Kf5 {[%emt 0:00:09]} Ne8 {[%emt 0:00:09]} 53. e5 {[%emt 0:00:44]} Nc7 {[%emt 0:00:04]} 54. Bc4 {[%emt 0:00:13]} Ke7 {[%emt 0:00:07]} 55. d5 {[%emt 0:00:07]} Ne8 {[%emt 0:00:08]} 56. Bb5 {[%emt 0:00:30]} Ng7+ {[%emt 0:00:08]} 57. Kg6 {[%emt 0:00:00]} Ne8 {[%emt 0:00:20]} 58. Bxe8 {[%emt 0:00:05]} Kxe8 {[%emt 0:00:02]} 59. Kf6 {[%emt 0:00:09]} Kf8 {[%emt 0:00:20]} 60. e6 {[%emt 0:00:06]} Ke8 {[%emt 0:00:07]} 61. d6 {[%emt 0:01:17]} Kd8 {[%emt 0:00:17]} 62. h5 {[%emt 0:00:12]} Ke8 {[%emt 0:00:12]} 63. h6 {[%emt 0:00:05]} Kd8 {[%emt 0:00:09]} 64. h7 {[%emt 0:00:06]} Kc8 {[%emt 0:00:01]} 65. h8=Q+ {[%emt 0:00:06]} Kb7 {[%emt 0:00:14]} 66. d7 {[%emt 0:00:12]} Kc6 {[%emt 0:00:15]} 67. Qc8+ {[%emt 0:00:07]} Kd5 {[%emt 0:00:01]} 68. d8=Q+ {[%emt 0:00:17]} Ke4 {[%emt 0:00:03]} 69. Qc4+ {[%emt 0:00:09]} Ke3 {[%emt 0:00:15]} 70. Qdd3+ {[%emt 0:00:07]} Kf2 {[%emt 0:00:09]} 71. Qcc2+ {[%emt 0:00:09]} Ke1 {[%emt 0:00:06]} 72. Qdd1# {[%emt 0:00:06]} 1-0

[Event "DVM U12 2024"]
[Site "Heidelberg"]
[Date "2024.12.29"]
[Round "6"]
[White "Zimmer, Tim"]
[Black "Heins, Simon"]
[Result "1-0"]
[ECO "B33"]
[WhiteElo "1846"]
[BlackElo "1708"]
[Annotator "NA RC"]
[PlyCount "90"]
[EventDate "2024.12.23"]
[EventType "team-tourn"]
[EventRounds "7"]
[EventCountry "GER"]
[SourceTitle "playchess.com"]
[Source "ChessBase"]
[SourceQuality "1"]
[TimeControl "40/5400+30:1800+30"]

1. e4 {[%emt 0:00:03]} c5 {[%emt 0:00:10]} 2. Nf3 {[%emt 0:00:04]} Nc6 {[%emt 0:00:12]} 3. d4 {[%emt 0:00:11]} cxd4 {[%emt 0:00:12]} 4. Nxd4 {[%emt 0:00:06]} e5 {[%emt 0:00:08]} 5. Nb5 {[%emt 0:00:10]} d6 {[%emt 0:00:06]} 6. N1c3 {[%emt 0:00:32]} a6 {[%emt 0:00:08]} 7. Na3 {[%emt 0:00:06]} b5 {[%emt 0:00:05]} 8. Nd5 {[%emt 0:01:03]} Nf6 {[%emt 0:00:15]} 9. Bg5 {[%emt 0:01:40]} Be7 {[%emt 0:00:10]} 10. Bxf6 {[%emt 0:00:35]} Bxf6 {[%emt 0:00:16]} 11. c3 {[%emt 0:01:18]} Bg5 {[%emt 0:00:09]} 12. Bd3 {[%emt 0:03:25]} Ne7 {[%emt 0:01:36]} 13. Be2 {[%emt 0:07:57]} O-O {[%emt 0:02:08]} 14. Nc2 {[%emt 0:05:06]} Nxd5 {[%emt 0:02:01]} 15. exd5 {[%emt 0:02:03]} f5 {[%emt 0:04:13]} 16. O-O {[%emt 0:02:34]} Bb7 {[%emt 0:03:13]} 17. a4 {[%emt 0:03:20]} bxa4 {[%emt 0:00:42]} 18. Rxa4 {[%emt 0:01:29]} Qd7 {[%emt 0:01:54]} 19. Nb4 {[%emt 0:08:15]} a5 {[%emt 0:02:48]} 20. Nc6 {[%emt 0:01:31]} Kh8 {[%emt 0:08:45]} 21. Bb5 {[%emt 0:04:30]} Qc7 {[%emt 0:05:29]} 22. Qa1 {[%emt 0:02:33]} f4 {[%emt 0:01:44]} 23. Qa2 {[%emt 0:17:30]} f3 {[%emt 0:03:15]} 24. g3 {[%emt 0:00:38]} Qc8 {[%emt 0:09:44]} 25. Ra1 {[%emt 0:03:21]} Bxc6 {[%emt 0:20:04]} 26. dxc6 {[%emt 0:00:19]} Rb8 {[%emt 0:00:42]} 27. Bf1 {[%emt 0:01:59]} Qxc6 {[%emt 0:00:44]} 28. Rxa5 {[%emt 0:02:01]} Bh6 {[%emt 0:03:27]} 29. Ra6 {[%emt 0:03:55]} Qb7 {[%emt 0:02:17]} 30. Rxd6 {[%emt 0:14:39]} e4 {[%emt 0:03:35]} 31. Rxh6 {[%emt 0:01:07]} gxh6 {[%emt 0:00:17]} 32. Qc4 {[%emt 0:00:52]} Rbe8 {[%emt 0:02:52]} 33. Re1 {[%emt 0:03:16]} Rf7 {[%emt 0:19:08]} 34. Qd4+ {[%emt 0:01:21]} Rg7 {[%emt 0:00:15]} 35. b4 {[%emt 0:02:15]} Qa7 {[%emt 0:01:33]} 36. Rxe4 {[%emt 0:00:47]} Rxe4 {[%emt 0:02:31]} 37. Qxe4 {[%emt 0:00:12]} Qb7 {[%emt 0:01:10]} 38. Qe8+ {[%emt 0:01:53]} Rg8 {[%emt 0:00:06]} 39. Qe3 {[%emt 0:01:41]} h5 {[%emt 0:01:13]} 40. Bd3 {[%emt 0:02:09]} Qg7 {[%emt 0:00:41]} 41. Bf1 {[%emt 0:10:18]} Qf6 {[%emt 0:04:10]} 42. c4 {[%emt 0:01:03]} h4 {[%emt 0:04:56]} 43. Qc5 {[%emt 0:04:54]} hxg3 {[%emt 0:01:50]} 44. hxg3 {[%emt 0:01:09]} Rg5 {[%emt 0:00:52]} 45. Qe3 {[%emt 0:04:15]} Qd6 {[%emt 0:01:47]} 1-0

[Event "DVM U12 2024"]
[Site "Heidelberg"]
[Date "2024.12.29"]
[Round "6"]
[White "Jahn, Gustav"]
[Black "Vu Hoang Bach"]
[Result "1-0"]
[ECO "A05"]
[WhiteElo "1822"]
[BlackElo "1779"]
[Annotator "NA RC"]
[PlyCount "83"]
[EventDate "2024.12.23"]
[EventType "team-tourn"]
[EventRounds "7"]
[EventCountry "GER"]
[SourceTitle "playchess.com"]
[Source "ChessBase"]
[SourceQuality "1"]
[TimeControl "40/5400+30:1800+30"]

1. Nf3 {[%emt 0:00:04]} Nf6 {[%emt 0:00:36]} 2. g3 {[%emt 0:00:15]} e6 {[%emt 0:00:02]} 3. Bg2 {[%emt 0:00:12]} b6 {[%emt 0:00:07]} 4. d3 {[%emt 0:00:21]} Be7 {[%emt 0:00:04]} 5. O-O {[%emt 0:00:20]} O-O {[%emt 0:00:18]} 6. e4 {[%emt 0:00:11]} d5 {[%emt 0:00:36]} 7. Nbd2 {[%emt 0:00:21]} Bb7 {[%emt 0:00:32]} 8. e5 {[%emt 0:00:52]} Nfd7 {[%emt 0:00:05]} 9. Re1 {[%emt 0:00:15]} c5 {[%emt 0:00:03]} 10. c3 {[%emt 0:01:54]} Nc6 {[%emt 0:00:25]} 11. d4 {[%emt 0:01:17]} cxd4 {[%emt 0:00:11]} 12. cxd4 {[%emt 0:00:14]} Rc8 {[%emt 0:00:13]} 13. a3 {[%emt 0:01:07]} Rc7 {[%emt 0:01:38]} 14. Nf1 {[%emt 0:00:49]} b5 {[%emt 0:01:28]} 15. h4 {[%emt 0:01:36]} Qb8 {[%emt 0:02:22]} 16. Bf4 {[%emt 0:02:55]} Rfc8 {[%emt 0:00:26]} 17. Ne3 {[%emt 0:02:11]} b4 {[%emt 0:00:24]} 18. Ng5 {[%emt 0:01:12]} h6 {[%emt 0:00:41]} 19. Nh3 {[%emt 0:15:55]} Bf8 {[%emt 0:00:49]} 20. Nxd5 {[%emt 0:06:29]} exd5 {[%emt 0:00:44]} 21. e6 {[%emt 0:00:30]} Nf6 {[%emt 0:00:54]} 22. exf7+ {[%emt 0:00:46]} Kh8 {[%emt 0:00:23]} 23. Ng5 {[%emt 0:14:51]} Qa8 {[%emt 0:00:57]} 24. Bxc7 {[%emt 0:02:14]} Rxc7 {[%emt 0:00:10]} 25. Ne6 {[%emt 0:02:52]} Rxf7 {[%emt 0:00:24]} 26. axb4 {[%emt 0:00:40]} Bxb4 {[%emt 0:01:07]} 27. Re3 {[%emt 0:01:11]} Ne7 {[%emt 0:03:38]} 28. Qa4 {[%emt 0:01:18]} a5 {[%emt 0:00:04]} 29. Nf4 {[%emt 0:02:46]} Nf5 {[%emt 0:03:20]} 30. Rb3 {[%emt 0:03:57]} Qc8 {[%emt 0:01:27]} 31. Ng6+ {[%emt 0:00:54]} Kh7 {[%emt 0:01:37]} 32. Ne5 {[%emt 0:00:19]} Re7 {[%emt 0:00:14]} 33. Bh3 {[%emt 0:01:19]} Ne4 {[%emt 0:02:06]} 34. Rf3 {[%emt 0:01:12]} Ned6 {[%emt 0:00:16]} 35. Qd1 {[%emt 0:01:35]} Qe6 {[%emt 0:15:48]} 36. Qd3 {[%emt 0:01:34]} g6 {[%emt 0:00:20]} 37. h5 {[%emt 0:01:35]} Nxd4 {[%emt 0:04:14]} 38. Bxe6 {[%emt 0:02:18]} Nxf3+ {[%emt 0:00:08]} 39. Qxf3 {[%emt 0:00:56]} Rxe6 {[%emt 0:00:05]} 40. Nxg6 {[%emt 0:01:00]} Re8 {[%emt 0:02:19]} 41. Qf6 {[%emt 0:31:44]} Bc8 {[%emt 0:30:36]} 42. Ne7 {[%emt 0:03:09]} 1-0

[Event "DVM U12 2024"]
[Site "Heidelberg"]
[Date "2024.12.29"]
[Round "6"]
[White "Serwane, Ruben"]
[Black "Hantke, Karl"]
[Result "1-0"]
[ECO "B33"]
[WhiteElo "1799"]
[BlackElo "1627"]
[Annotator "NA RC"]
[PlyCount "77"]
[EventDate "2024.12.23"]
[EventType "team-tourn"]
[EventRounds "7"]
[EventCountry "GER"]
[SourceTitle "playchess.com"]
[Source "ChessBase"]
[SourceQuality "1"]
[TimeControl "40/5400+30:1800+30"]

1. e4 {[%emt 0:00:07]} c5 {[%emt 0:00:42]} 2. Nf3 {[%emt 0:00:14]} Nc6 {[%emt 0:00:14]} 3. d4 {[%emt 0:00:28]} cxd4 {[%emt 0:00:18]} 4. Nxd4 {[%emt 0:00:21]} e5 {[%emt 0:01:20]} 5. Nb5 {[%emt 0:00:56]} d6 {[%emt 0:00:22]} 6. N1c3 {[%emt 0:00:43]} a6 {[%emt 0:00:23]} 7. Na3 {[%emt 0:00:38]} Nf6 {[%emt 0:01:31]} 8. Bg5 {[%emt 0:01:08]} Be7 {[%emt 0:00:33]} 9. Bxf6 {[%emt 0:01:55]} Bxf6 {[%emt 0:01:23]} 10. Nd5 {[%emt 0:00:00]} Be6 {[%emt 0:00:55]} 11. Nc4 {[%emt 0:01:33]} b5 {[%emt 0:02:16]} 12. Nxf6+ {[%emt 0:03:38]} gxf6 {[%emt 0:03:15]} 13. Qxd6 {[%emt 0:02:30]} Nd4 {[%emt 0:18:45]} 14. Qxd8+ {[%emt 0:00:55]} Rxd8 {[%emt 0:01:43]} 15. Ne3 {[%emt 0:00:45]} Rg8 {[%emt 0:09:03]} 16. c3 {[%emt 0:01:23]} Nc6 {[%emt 0:01:34]} 17. a4 {[%emt 0:01:32]} Rb8 {[%emt 0:06:34]} 18. axb5 {[%emt 0:02:18]} axb5 {[%emt 0:00:52]} 19. Nd5 {[%emt 0:00:59]} Bxd5 {[%emt 0:04:33]} 20. exd5 {[%emt 0:00:10]} Nd8 {[%emt 0:01:18]} 21. O-O-O {[%emt 0:01:15]} b4 {[%emt 0:02:09]} 22. c4 {[%emt 0:01:50]} Ke7 {[%emt 0:04:54]} 23. c5 {[%emt 0:02:39]} Rc8 {[%emt 0:01:46]} 24. c6 {[%emt 0:00:25]} Kd6 {[%emt 0:01:22]} 25. b3 {[%emt 0:00:44]} Rc7 {[%emt 0:02:26]} 26. Kb2 {[%emt 0:00:50]} h6 {[%emt 0:01:38]} 27. g3 {[%emt 0:00:45]} Rg4 {[%emt 0:01:45]} 28. Bg2 {[%emt 0:02:39]} Rg8 {[%emt 0:01:09]} 29. Bh3 {[%emt 0:01:26]} Re8 {[%emt 0:02:01]} 30. Bd7 {[%emt 0:00:28]} Re7 {[%emt 0:01:44]} 31. Rhe1 {[%emt 0:01:04]} Rexd7 {[%emt 0:00:54]} 32. cxd7 {[%emt 0:00:15]} Rxd7 {[%emt 0:00:16]} 33. Re4 {[%emt 0:00:48]} Nb7 {[%emt 0:00:28]} 34. Rxb4 {[%emt 0:00:31]} Nc5 {[%emt 0:00:43]} 35. Rb6+ {[%emt 0:00:46]} Ke7 {[%emt 0:00:14]} 36. f3 {[%emt 0:01:02]} f5 {[%emt 0:01:05]} 37. Rxh6 {[%emt 0:00:52]} e4 {[%emt 0:00:13]} 38. fxe4 {[%emt 0:01:29]} fxe4 {[%emt 0:00:12]} 39. Kc3 {[%emt 0:02:35]} 1-0